Workbook

Sheet AccomplishmentConfig
B1: id | C1: MapId | D1: Sort | E1: Logic | F1: Values | G1: Info | H1: Score | I1: Reward | J1: ScheduleShow | K1: NoUse
B2: int | C2: int | D2: int | E2: int | F2: mut,int#int,2 | G2: string | H2: int | I2: mut,int#int,1 | J2: int | K2: string
B3: 2 | C3: 2 | D3: 3 | E3: 2 | F3: 2 | G3: 3 | H3: 2 | I3: 2 | J3: 3 | K3: 0
B4: 索引 | C4: 地图编号 | D4: 排序编号 | E4: 探索度逻辑类型 | F4: 逻辑参数 | G4: 探索度描述 | H4: 任务增加值 | I4: 功绩奖励组 | J4: 进度显示 | K4: 备注
A5: 默认值 | C5: 0 | D5: 0 | E5: 0 | F5: 0 | H5: 0 | I5: null | J5: 1
A6: 正确性校对
A7: 校对值
B8: 1 | C8: 100 | D8: 1 | E8: 1 | F8: 100059#100061#100062#100063|1 | G8: 劫后余生 | H8: 100
B9: 2 | C9: 101 | D9: 1 | E9: 2 | F9: 10101|1 | G9: 击败灵智妖兽 | H9: 10
B10: 3 | C10: 101 | D10: 2 | E10: 1 | F10: 101030#101032#101033#101034|1 | G10: 解救冒险者的朋友 | H10: 10
B11: 4 | C11: 101 | D11: 3 | E11: 1 | F11: 101094#101095#101096|1 | G11: 采集银月草和白灵花 | H11: 10
B12: 5 | C12: 101 | D12: 4 | E12: 1 | F12: 101078#101080#101082#101084#101086#101088#101090#101091#101092#101103|1 | G12: 治好冒险者的伤 | H12: 10
B13: 6 | C13: 101 | D13: 5 | E13: 7 | F13: 0|1 | G13: 找到1个宝箱 | H13: 5
B14: 7 | C14: 101 | D14: 6 | E14: 7 | F14: 0|3 | G14: 找到3个宝箱 | H14: 10
B15: 8 | C15: 101 | D15: 7 | E15: 7 | F15: 0|5 | G15: 找到5个宝箱 | H15: 15
B16: 9 | C16: 101 | D16: 8 | E16: 7 | F16: 0|7 | G16: 找到7个宝箱 | H16: 20
B17: 10 | C17: 101 | D17: 9 | E17: 3 | F17: 0|10 | G17: 战斗胜利10次 | H17: 10
B18: 11 | C18: 102 | D18: 1 | E18: 2 | F18: 10204#10205#10207|1 | G18: 击败迷魂兽 | H18: 20
B19: 12 | C19: 102 | D19: 2 | E19: 1 | F19: 102024#102026#102028#102029#102030#102160#102162|1 | G19: 与平民们交谈 | H19: 10
B20: 13 | C20: 102 | D20: 3 | E20: 1 | F20: 102090#102092#102094#102096#102098#102100#102102#102104#102105#102106#102142#102144#102146#102148#102150#102151#102152#102185#102187#102189#102191#102193#102195#102197#102199#102201#102202#102203|1 | G20: 见证卫兵头领的抉择 | H20: 15
B21: 14 | C21: 102 | D21: 4 | E21: 1 | F21: 102108#102110#102112#102114#102116#102118#102119#102120#102168#102205#102207#102209#102211#102213#102215#102217#102219#102221#102223#102224#102225|1 | G21: 接受村民的感谢 | H21: 10
B22: 15 | C22: 102 | D22: 5 | E22: 2 | F22: 10206|5 | G22: 击杀5只妖兽 | H22: 15
B23: 16 | C23: 102 | D23: 6 | E23: 7 | F23: 0|2 | G23: 找到2个宝箱 | H23: 5
B24: 17 | C24: 102 | D24: 7 | E24: 7 | F24: 0|4 | G24: 找到4个宝箱 | H24: 10
B25: 18 | C25: 102 | D25: 8 | E25: 7 | F25: 0|6 | G25: 找到6个宝箱 | H25: 15
B26: 19 | C26: 103 | D26: 1 | E26: 2 | F26: 10304|1 | G26: 击败马贼头目 | H26: 20
B27: 20 | C27: 103 | D27: 2 | E27: 1 | F27: 103014#103016#103018#103020#103022#103024#103026#103028#103029#103030|1 | G27: 与逃难者交谈 | H27: 15
B28: 21 | C28: 103 | D28: 3 | E28: 1 | F28: 103042#103044#103045#103046|1 | G28: 闯进马贼营寨 | H28: 10
B29: 22 | C29: 103 | D29: 4 | E29: 1 | F29: 103178#103180#103181#103182|1 | G29: 救出小叶 | H29: 20
B30: 23 | C30: 103 | D30: 5 | E30: 1 | F30: 103102#103104#103106#103108#103110#103112#103114#103116#103118#103120#103121#103122#103124#103126#103128#103129#103130|1 | G30: 回复逃难者 | H30: 10
B31: 24 | C31: 103 | D31: 6 | E31: 7 | F31: 0|1 | G31: 找到1个宝箱 | H31: 10
B32: 25 | C32: 103 | D32: 7 | E32: 7 | F32: 0|3 | G32: 找到3个宝箱 | H32: 15
B33: 26 | C33: 104 | D33: 1 | E33: 2 | F33: 10401|1 | G33: 击败妖兽，夺回船只 | H33: 15
B34: 27 | C34: 104 | D34: 2 | E34: 1 | F34: 104010#104012#104014#104015#104016|1 | G34: 获得藏宝图 | H34: 10
B35: 28 | C35: 104 | D35: 3 | E35: 1 | F35: 104036#104037#104042#104043|1 | G35: 探索南方的墓碑 | H35: 10
B36: 29 | C36: 104 | D36: 4 | E36: 1 | F36: 104070#104071#104072#104073#104074#104075|1 | G36: 探索北方的营寨 | H36: 10
B37: 30 | C37: 104 | D37: 5 | E37: 1 | F37: 104101#104102|1 | G37: 探索藏宝点 | H37: 15
B38: 31 | C38: 104 | D38: 6 | E38: 1 | F38: 104103|1 | G38: 修复断桥 | H38: 15
B39: 32 | C39: 104 | D39: 7 | E39: 7 | F39: 0|1 | G39: 找到1个宝箱 | H39: 10
B40: 33 | C40: 104 | D40: 8 | E40: 7 | F40: 0|3 | G40: 找到3个宝箱 | H40: 15
B41: 34 | C41: 105 | D41: 1 | E41: 1 | F41: 105002#105004#105006#105007#105008#105267|1 | G41: 和商人对话 | H41: 10
B42: 35 | C42: 105 | D42: 2 | E42: 1 | F42: 105123#105124|1 | G42: 找到淡水 | H42: 10
B43: 36 | C43: 105 | D43: 3 | E43: 1 | F43: 105141|1 | G43: 回复商人 | H43: 10
B44: 37 | C44: 105 | D44: 4 | E44: 1 | F44: 105189#105190|1 | G44: 领取石像奖励 | H44: 15
B45: 38 | C45: 105 | D45: 5 | E45: 1 | F45: 105194#105196#105198#105199#105200|1 | G45: 回复楚恒 | H45: 15
B46: 39 | C46: 105 | D46: 6 | E46: 2 | F46: 10502|3 | G46: 获得兽肉 | H46: 5
B47: 40 | C47: 105 | D47: 7 | E47: 7 | F47: 0|1 | G47: 找到1个宝箱 | H47: 10
B48: 41 | C48: 105 | D48: 8 | E48: 7 | F48: 0|3 | G48: 找到3个宝箱 | H48: 25
B49: 42 | C49: 106 | D49: 1 | E49: 1 | F49: 106002#106004#106006#106007#106008|1 | G49: 与士兵对话 | H49: 10
B50: 43 | C50: 106 | D50: 2 | E50: 2 | F50: 10601|1 | G50: 解救平民 | H50: 20
B51: 44 | C51: 106 | D51: 3 | E51: 2 | F51: 10602|1 | G51: 搜索西方 | H51: 20
B52: 45 | C52: 106 | D52: 4 | E52: 1 | F52: 106066#106068#106070#106072#106074#106076#106119#106121#106122#106123#106098#106100#106102#106139#106140#106141|1 | G52: 回复守备军士兵 | H52: 10
B53: 46 | C53: 106 | D53: 5 | E53: 1 | F53: 106133#106135#106136#106137|1 | G53: 护送平民 | H53: 10
B54: 47 | C54: 106 | D54: 6 | E54: 7 | F54: 0|1 | G54: 找到1个宝箱 | H54: 5
B55: 48 | C55: 106 | D55: 7 | E55: 7 | F55: 0|3 | G55: 找到3个宝箱 | H55: 10
B56: 49 | C56: 106 | D56: 8 | E56: 7 | F56: 0|5 | G56: 找到5个宝箱 | H56: 15
B57: 50 | C57: 107 | D57: 1 | E57: 2 | F57: 10701|1 | G57: 教训地痞 | H57: 10
B58: 51 | C58: 107 | D58: 2 | E58: 2 | F58: 10702|1 | G58: 闯进赌坊 | H58: 10
B59: 52 | C59: 107 | D59: 3 | E59: 2 | F59: 10703#10708|1 | G59: 教训地痞头领 | H59: 15
B60: 53 | C60: 107 | D60: 5 | E60: 1 | F60: 107157|1 | G60: 交付幻魂草 | H60: 10
B61: 54 | C61: 107 | D61: 6 | E61: 2 | F61: 10711|1 | G61: 战胜大长老 | H61: 15
B62: 55 | C62: 107 | D62: 7 | E62: 1 | F62: 107263#107264#107265|1 | G62: 回复平民 | H62: 10
B63: 56 | C63: 107 | D63: 8 | E63: 3 | F63: 0|10 | G63: 战斗胜利10次 | H63: 10
B64: 57 | C64: 107 | D64: 9 | E64: 7 | F64: 0|1 | G64: 找到1个宝箱 | H64: 10
B65: 58 | C65: 107 | D65: 10 | E65: 7 | F65: 0|3 | G65: 找到3个宝箱 | H65: 10
B66: 59 | C66: 108 | D66: 1 | E66: 1 | F66: 108018#108020#108022#108024#108026#108028#108030#108032#108033#108034|1 | G66: 找到受伤的士兵 | H66: 10
B67: 60 | C67: 108 | D67: 2 | E67: 2 | F67: 10801|1 | G67: 找到散播谣言的人 | H67: 10
B68: 61 | C68: 108 | D68: 3 | E68: 1 | F68: 108083#108084#108095#108096|3 | G68: 破坏结界 | H68: 15
B69: 62 | C69: 108 | D69: 4 | E69: 2 | F69: 10802|1 | G69: 击败终亡信徒 | H69: 10
B70: 63 | C70: 108 | D70: 5 | E70: 1 | F70: 108146#108147#108155#108156#108164#108165#108167#108169#108171#108173#108175#108177#108179#108181#108182#108183#108197#108189#108191|3 | G70: 找出混入人群的信徒 | H70: 15
B71: 64 | C71: 108 | D71: 6 | E71: 3 | F71: 0|15 | G71: 战斗胜利15次 | H71: 15
B72: 65 | C72: 108 | D72: 7 | E72: 7 | F72: 0|1 | G72: 找到1个宝箱 | H72: 10
B73: 66 | C73: 108 | D73: 8 | E73: 7 | F73: 0|3 | G73: 找到3个宝箱 | H73: 15
B74: 67 | C74: 109 | D74: 1 | E74: 2 | F74: 10901|1 | G74: 清理妖兽 | H74: 10
B75: 68 | C75: 109 | D75: 2 | E75: 2 | F75: 10902|1 | G75: 消灭灵智妖兽 | H75: 15
B76: 69 | C76: 109 | D76: 3 | E76: 2 | F76: 10903|3 | G76: 击败终亡信徒 | H76: 15
B77: 70 | C77: 109 | D77: 4 | E77: 1 | F77: 109042#109044#109046#109048#109050#109051#109052|1 | G77: 和护卫长交谈 | H77: 15
B78: 71 | C78: 109 | D78: 5 | E78: 1 | F78: 109090#109092#109094#109096#109097#109098|1 | G78: 将灵石送往法阵 | H78: 10
B79: 72 | C79: 109 | D79: 6 | E79: 3 | F79: 0|10 | G79: 战斗胜利10次 | H79: 10
B80: 73 | C80: 109 | D80: 7 | E80: 7 | F80: 0|1 | G80: 找到1个宝箱 | H80: 10
B81: 74 | C81: 109 | D81: 8 | E81: 7 | F81: 0|3 | G81: 找到3个宝箱 | H81: 15
B82: 75 | C82: 110 | D82: 1 | E82: 1 | F82: 110002#110004#110006#110008#110010#110012#110014#110016#110018#110020#110022#110024#110025#110026|1 | G82: 与楚恒交谈 | H82: 10
B83: 76 | C83: 110 | D83: 2 | E83: 1 | F83: 110036#110038#110040#110042#110044#110046#110048#110050#110051#110052|1 | G83: 找到贾裴文 | H83: 10
B84: 77 | C84: 110 | D84: 3 | E84: 1 | F84: 110063#110064|1 | G84: 找到止血药 | H84: 10
B85: 78 | C85: 110 | D85: 4 | E85: 1 | F85: 110072#110074#110076#110078#110080#110082#110084#110086#110087#110088|1 | G85: 治好贾裴文 | H85: 10
B86: 79 | C86: 110 | D86: 5 | E86: 1 | F86: 110102#110104#110106#110108#110110#110112#110114#110116#110118#110120#110122#110124#110126#110128#110130#110132#110134#110135#110136|1 | G86: 救出地堡百姓 | H86: 10
B87: 80 | C87: 110 | D87: 6 | E87: 1 | F87: 110148#110150#110152#110153#110154|1 | G87: 护送百姓返回法阵 | H87: 10
B88: 81 | C88: 110 | D88: 7 | E88: 1 | F88: 110093#110171#110172#110185#110189#110195#110199#110204|3 | G88: 探索城中的地堡 | H88: 10
B89: 82 | C89: 110 | D89: 8 | E89: 3 | F89: 0|15 | G89: 战斗胜利15次 | H89: 10
B90: 83 | C90: 110 | D90: 9 | E90: 7 | F90: 0|1 | G90: 找到1个宝箱 | H90: 10
B91: 84 | C91: 110 | D91: 10 | E91: 7 | F91: 0|3 | G91: 找到3个宝箱 | H91: 10
B92: 85 | C92: 111 | D92: 1 | E92: 1 | F92: 111008#111010#111012#111014#111016#111017#111018|1 | G92: 开启阵法 | H92: 5
B93: 86 | C93: 111 | D93: 2 | E93: 1 | F93: 111044#111045#111046|1 | G93: 寻找刻笔 | H93: 5
B94: 87 | C94: 111 | D94: 3 | E94: 2 | F94: 11102|1 | G94: 击败终亡信徒 | H94: 10
B95: 88 | C95: 111 | D95: 4 | E95: 1 | F95: 111116#111118#111120#111122#111124#111126#111128#111129#111130|1 | G95: 汇合 | H95: 10
B96: 89 | C96: 111 | D96: 5 | E96: 1 | F96: 111153#111154|1 | G96: 固灵之阵增幅最高 | H96: 15
B97: 90 | C97: 111 | D97: 6 | E97: 1 | F97: 111177#111178|1 | G97: 灭灵之阵增幅最高 | H97: 15
B98: 91 | C98: 111 | D98: 7 | E98: 3 | F98: 0|15 | G98: 战斗胜利15次 | H98: 15
B99: 92 | C99: 111 | D99: 8 | E99: 7 | F99: 0|1 | G99: 找到1个宝箱 | H99: 10
B100: 93 | C100: 111 | D100: 9 | E100: 7 | F100: 0|3 | G100: 找到3个宝箱 | H100: 15
B101: 94 | C101: 112 | D101: 1 | E101: 2 | F101: 11201|1 | G101: 击败楚恒幻象 | H101: 10
B102: 95 | C102: 112 | D102: 2 | E102: 2 | F102: 11202#11203#11204|3 | G102: 消灭幻象 | H102: 10
B103: 96 | C103: 112 | D103: 3 | E103: 1 | F103: 112178#112179#112180|1 | G103: 神秘的幻灵 | H103: 10
B104: 97 | C104: 112 | D104: 4 | E104: 1 | F104: 112102#112103#112104|1 | G104: 获得忠义之心 | H104: 10
B105: 98 | C105: 112 | D105: 5 | E105: 1 | F105: 112115#112116|1 | G105: 获得仁慈之心 | H105: 10
B106: 99 | C106: 112 | D106: 6 | E106: 1 | F106: 112124#112125#112126|1 | G106: 获得坚毅之心 | H106: 10
B107: 100 | C107: 112 | D107: 7 | E107: 1 | F107: 112162#112164#112166#112167#112168|1 | G107: 获得羁绊之心 | H107: 10
B108: 101 | C108: 112 | D108: 8 | E108: 3 | F108: 0|12 | G108: 战斗胜利12次 | H108: 10
B109: 102 | C109: 112 | D109: 9 | E109: 7 | F109: 0|2 | G109: 找到2个宝箱 | H109: 10
B110: 103 | C110: 112 | D110: 10 | E110: 7 | F110: 0|4 | G110: 找到4个宝箱 | H110: 10
B111: 104 | C111: 113 | D111: 1 | E111: 2 | F111: 11301|1 | G111: 击退妖兽 | H111: 15
B112: 105 | C112: 113 | D112: 2 | E112: 2 | F112: 11302|1 | G112: 击败终亡教徒 | H112: 20
B113: 106 | C113: 113 | D113: 3 | E113: 2 | F113: 11303|1 | G113: 摧毁传送阵 | H113: 10
B114: 107 | C114: 113 | D114: 4 | E114: 1 | F114: 113066#113068#113070#113131#113072#113074#113076#113078#113080#113131#113132#113133|1 | G114: 生死相依 | H114: 20
B115: 108 | C115: 113 | D115: 5 | E115: 7 | F115: 0|1 | G115: 找到1个宝箱 | H115: 10
B116: 109 | C116: 113 | D116: 6 | E116: 7 | F116: 0|3 | G116: 找到3个宝箱 | H116: 10
B117: 110 | C117: 113 | D117: 7 | E117: 3 | F117: 0|10 | G117: 战斗10次 | H117: 15
B118: 111 | C118: 114 | D118: 1 | E118: 1 | F118: 114022#114024#114026#114028#114030#114032#114034#114036#114038#114040#114042#114044#114045#114046|1 | G118: 和影子交谈 | H118: 10
B119: 112 | C119: 114 | D119: 2 | E119: 1 | F119: 114052#114054#114056#114058#114060#114061#114062|1 | G119: 帮小影塑造外貌 | H119: 15
B120: 113 | C120: 114 | D120: 3 | E120: 1 | F120: 114122#114123#114137#114139#114141#114142#114143#114165#114166#114167|3 | G120: 找到六欲 | H120: 15
B121: 114 | C121: 114 | D121: 4 | E121: 1 | F121: 114064#114066#114068#114070#114072#114074#114076#114078#114080#114082#114083#114084|1 | G121: 听完小影的讲述 | H121: 10
B122: 115 | C122: 114 | D122: 5 | E122: 2 | F122: 11402|5 | G122: 消灭5个记忆之灵 | H122: 15
B123: 116 | C123: 114 | D123: 6 | E123: 3 | F123: 0|10 | G123: 战斗胜利10次 | H123: 10
B124: 117 | C124: 114 | D124: 7 | E124: 7 | F124: 0|1 | G124: 找到1个宝箱 | H124: 10
B125: 118 | C125: 114 | D125: 8 | E125: 7 | F125: 0|3 | G125: 找到3个宝箱 | H125: 15
B126: 119 | C126: 115 | D126: 1 | E126: 1 | F126: 115002#115004#115006#115008#115010#115012#115014#115112#115114#115115#115116|1 | G126: 向石御霏询问情况 | H126: 10
B127: 120 | C127: 115 | D127: 2 | E127: 1 | F127: 115027#115028|1 | G127: 寻找平民的线索 | H127: 10
B128: 121 | C128: 115 | D128: 3 | E128: 2 | F128: 11501|1 | G128: 击败蒙面人 | H128: 10
B129: 122 | C129: 115 | D129: 4 | E129: 2 | F129: 11503|1 | G129: 击败业火堂主 | H129: 15
B130: 123 | C130: 115 | D130: 5 | E130: 1 | F130: 115094#115096#115098#115100#115102#115104#115105#115106|1 | G130: 把得到的信息告诉石御霏 | H130: 10
B131: 124 | C131: 115 | D131: 6 | E131: 1 | F131: 115234#115236#115237#115238|1 | G131: 找到解毒的方法 | H131: 10
B132: 125 | C132: 115 | D132: 7 | E132: 3 | F132: 0|10 | G132: 战斗胜利10次 | H132: 10
B133: 126 | C133: 115 | D133: 8 | E133: 7 | F133: 0|2 | G133: 找到2个宝箱 | H133: 10
B134: 127 | C134: 115 | D134: 9 | E134: 7 | F134: 0|4 | G134: 找到4个宝箱 | H134: 15
B135: 128 | C135: 116 | D135: 1 | E135: 1 | F135: 116002#116003#116004|1 | G135: 与石御霏交谈 | H135: 5
B136: 129 | C136: 116 | D136: 2 | E136: 1 | F136: 116006#116007#116008|1 | G136: 查看公告栏 | H136: 5
B137: 130 | C137: 116 | D137: 3 | E137: 2 | F137: 11601|1 | G137: 击退狼群 | H137: 5
B138: 131 | C138: 116 | D138: 4 | E138: 1 | F138: 116045|1 | G138: 调查脚印 | H138: 5
B139: 132 | C139: 116 | D139: 5 | E139: 1 | F139: 116061|1 | G139: 进入山洞 | H139: 5
B140: 133 | C140: 116 | D140: 6 | E140: 2 | F140: 11604|2 | G140: 收集兽肉 | H140: 5
B141: 134 | C141: 116 | D141: 7 | E141: 1 | F141: 116105|2 | G141: 布置陷阱 | H141: 10
B142: 135 | C142: 116 | D142: 8 | E142: 2 | F142: 11605|1 | G142: 击杀人狼 | H142: 10
B143: 136 | C143: 116 | D143: 9 | E143: 3 | F143: 0|12 | G143: 战斗胜利12次 | H143: 20
B144: 137 | C144: 116 | D144: 10 | E144: 7 | F144: 0|3 | G144: 找到3个宝箱 | H144: 20
B145: 138 | C145: 116 | D145: 11 | E145: 1 | F145: 116148#116150#116152#116153#116154|1 | G145: 回复老李 | H145: 10
B146: 139 | C146: 117 | D146: 1 | E146: 1 | F146: 117002#117004#117006#117008#117009#117010|1 | G146: 与军官交谈 | H146: 5
B147: 140 | C147: 117 | D147: 2 | E147: 1 | F147: 117031|1 | G147: 调查义庄 | H147: 5
B148: 141 | C148: 117 | D148: 3 | E148: 1 | F148: 117039|1 | G148: 查看尸体 | H148: 5
B149: 142 | C149: 117 | D149: 4 | E149: 1 | F149: 117047#117048|1 | G149: 案发现场 | H149: 5
B150: 143 | C150: 117 | D150: 5 | E150: 1 | F150: 117062#117064#117066#117068#117070#117071#117072#117082#117084#117086#117087#117088#117090#117092#117094#117096#117098#117100#117102#117103#117104|2 | G150: 搜集证据 | H150: 15
B151: 144 | C151: 117 | D151: 6 | E151: 1 | F151: 117136#117138#117139#117140|1 | G151: 酒馆疑云 | H151: 10
B152: 145 | C152: 117 | D152: 7 | E152: 2 | F152: 11704|1 | G152: 击败酒鬼 | H152: 10
B153: 146 | C153: 117 | D153: 8 | E153: 1 | F153: 117154#117156#117158#117159#117160|1 | G153: 回复军官 | H153: 15
B154: 147 | C154: 117 | D154: 9 | E154: 3 | F154: 0|12 | G154: 战斗胜利12次 | H154: 20
B155: 148 | C155: 117 | D155: 10 | E155: 7 | F155: 0|3 | G155: 找到3个宝箱 | H155: 10
B156: 149 | C156: 118 | D156: 1 | E156: 1 | F156: 118002#118004#118006#118007#118008|1 | G156: 与韩灵儿交谈 | H156: 5
B157: 150 | C157: 118 | D157: 2 | E157: 2 | F157: 11801|3 | G157: 击败混混 | H157: 15
B158: 151 | C158: 118 | D158: 3 | E158: 2 | F158: 11802|1 | G158: 不打不相识 | H158: 5
B159: 152 | C159: 118 | D159: 4 | E159: 1 | F159: 118098#118100#118102#118104#118106#118107#118108|1 | G159: 勇闯赌坊 | H159: 15
B160: 153 | C160: 118 | D160: 5 | E160: 2 | F160: 11804|1 | G160: 灭杀妖兽 | H160: 5
B161: 154 | C161: 118 | D161: 6 | E161: 2 | F161: 11805|1 | G161: 击杀业火堂主 | H161: 5
B162: 155 | C162: 118 | D162: 7 | E162: 1 | F162: 118164#118165#118166#118168#118169#118170|1 | G162: 回复韩灵儿 | H162: 10
B163: 156 | C163: 118 | D163: 8 | E163: 3 | F163: 0|12 | G163: 战斗胜利12次 | H163: 20
B164: 157 | C164: 118 | D164: 9 | E164: 7 | F164: 0|3 | G164: 找到3个宝箱 | H164: 20
B165: 158 | C165: 119 | D165: 1 | E165: 1 | F165: 119002#119004#119006#119008#119010#119011#119012|1 | G165: 焦急的父亲 | H165: 5
B166: 159 | C166: 119 | D166: 2 | E166: 1 | F166: 119014#119016#119018#119020#119021#119022|1 | G166: 飞扬跋扈俏千金 | H166: 5
B167: 160 | C167: 119 | D167: 3 | E167: 2 | F167: 11901|2 | G167: 抓捕野兽 | H167: 15
B168: 161 | C168: 119 | D168: 4 | E168: 2 | F168: 11902|1 | G168: 宁月遇险 | H168: 10
B169: 162 | C169: 119 | D169: 5 | E169: 1 | F169: 119096#119098#119100#119101#119102|1 | G169: 失踪的韩灵儿 | H169: 15
B170: 163 | C170: 119 | D170: 6 | E170: 3 | F170: 0|12 | G170: 战斗胜利12次 | H170: 20
B171: 164 | C171: 119 | D171: 7 | E171: 1 | F171: 119142#119144#119146#119148#119149#119150|1 | G171: 回复韩星 | H171: 10
B172: 165 | C172: 119 | D172: 8 | E172: 7 | F172: 0|3 | G172: 找到3个宝箱 | H172: 20
B173: 166 | C173: 120 | D173: 1 | E173: 1 | F173: 120002#120004#120006#120008#120010#120012#120014#120015#120016|1 | G173: 与楚恒交谈 | H173: 5
B174: 167 | C174: 120 | D174: 2 | E174: 1 | F174: 120049|1 | G174: 乔装改扮 | H174: 5
B175: 168 | C175: 120 | D175: 3 | E175: 1 | F175: 120072#120073#120074|1 | G175: 搜集请帖 | H175: 10
B176: 169 | C176: 120 | D176: 4 | E176: 1 | F176: 120077|1 | G176: 混入其中 | H176: 10
B177: 170 | C177: 120 | D177: 5 | E177: 2 | F177: 12003#12004#12005|3 | G177: 突出重围 | H177: 10
B178: 171 | C178: 120 | D178: 6 | E178: 1 | F178: 120120#120122#120123#120124|1 | G178: 汇合宁月 | H178: 10
B179: 172 | C179: 120 | D179: 7 | E179: 1 | F179: 120201#120202|1 | G179: 回复石御霏 | H179: 20
B180: 173 | C180: 120 | D180: 8 | E180: 3 | F180: 0|12 | G180: 战斗胜利12次 | H180: 15
B181: 174 | C181: 120 | D181: 9 | E181: 7 | F181: 0|3 | G181: 找到3个宝箱 | H181: 15
B182: 175 | C182: 201 | D182: 1 | E182: 2 | F182: 201007|1 | G182: 击杀隐藏的浓雾中的妖兽 | H182: 40
B183: 176 | C183: 201 | D183: 2 | E183: 2 | F183: 201008|1 | G183: 击杀剩余的妖兽 | H183: 60
B184: 177 | C184: 202 | D184: 1 | E184: 2 | F184: 202007|1 | G184: 探查三途津 | H184: 40
B185: 178 | C185: 202 | D185: 2 | E185: 2 | F185: 202008|1 | G185: 击杀剩余的妖兽 | H185: 60
B186: 179 | C186: 203 | D186: 1 | E186: 2 | F186: 203007|1 | G186: 击杀零散的妖兽 | H186: 30
B187: 180 | C187: 203 | D187: 2 | E187: 2 | F187: 203008|1 | G187: 杀之不尽 | H187: 30
B188: 181 | C188: 203 | D188: 3 | E188: 2 | F188: 203009|1 | G188: 肃清风见原野 | H188: 40
B189: 182 | C189: 204 | D189: 1 | E189: 2 | F189: 204007|1 | G189: 支援渔民 | H189: 30
B190: 183 | C190: 204 | D190: 2 | E190: 2 | F190: 204008|1 | G190: 支援南面渔民 | H190: 30
B191: 184 | C191: 204 | D191: 3 | E191: 2 | F191: 204009|1 | G191: 肃清妖兽 | H191: 40
B192: 185 | C192: 205 | D192: 1 | E192: 2 | F192: 205007|1 | G192: 击杀妖兽 | H192: 10
B193: 186 | C193: 205 | D193: 2 | E193: 2 | F193: 205008|1 | G193: 妖兽据点 | H193: 20
B194: 187 | C194: 205 | D194: 3 | E194: 2 | F194: 205009|1 | G194: 杀之不尽 | H194: 30
B195: 188 | C195: 205 | D195: 4 | E195: 2 | F195: 205010|1 | G195: 肃清白叶渡 | H195: 40
B196: 189 | C196: 206 | D196: 1 | E196: 2 | F196: 206007|1 | G196: 支援观澜港 | H196: 30
B197: 190 | C197: 206 | D197: 2 | E197: 2 | F197: 206008|1 | G197: 再战妖兽 | H197: 30
B198: 191 | C198: 206 | D198: 3 | E198: 2 | F198: 206009|1 | G198: 守卫港口 | H198: 40
B199: 192 | C199: 207 | D199: 1 | E199: 2 | F199: 207007|1 | G199: 支援御水之都 | H199: 10
B200: 193 | C200: 207 | D200: 2 | E200: 2 | F200: 207008|1 | G200: 妖兽入侵 | H200: 20
... 143 more rows

Sheet 逻辑类型
A1: 1 | B1: 完成事件点
B2: 参数 | C2: 事件点id#次数
A4: 2 | B4: 击杀boss多少次
B5: 参数 | C5: 怪物组id#次数
A7: 3 | B7: 本次地图获得战斗胜利次数
B8: 参数 | C8: 胜利次数
A10: 4（暂时不做） | B10: 在本图行脚商人购买某物
B11: 参数 | C11: 行脚商人id#物品id
A13: 5 | B13: 本地图采矿都少次
B14: 参数 | C14: 次数
A16: 6 | B16: 在本次地图内消耗多少行动力
B17: 参数 | C17: 消耗行动力数量
A19: 7 | B19: 开宝箱
B20: 参数 | C20: 次数
A22: 8 | B22: 在本图行脚商人购买某类物品
B23: 参数 | C23: 行脚商人id#物品类型
A25: 9 | B25: 完成副本次数
B26: 参数 | C26: 难度|次数
A28: 10 | B28: 在xx分钟xx秒内通关
B29: 参数 | C29: 难度|时间（s）
A31: 11 | B31: 通关时，总死亡次数小于x次
B32: 参数 | C32: 难度|次数
A34: 12 | B34: 通关队伍总战力小于xxxxx
B35: 参数 | C35: 难度|战力
A37: 13 | B37: 通关xx难度的队伍中，不包含xx职业的妖灵师
B38: 参数 | C38: 难度|职业 | D38: 1武卫2天罚3秘法4玄策5生花
A40: 14 | B40: 击败xx难度的xxboss的队伍中，不包含xx职业
B41: 参数 | C41: 难度#怪物组|职业
A43: 15 | B43: 于xx秒内击败xx难度的xxboss
B44: 参数 | C44: 难度#怪物组|时间
A46: 16 | B46: 击败xx难度的xxboss时，队伍存活人数大于等于xx人
B47: 参数 | C47: 难度#怪物组|人数
A49: 17 | B49: 在xx难度中，完成所有事件点
B50: 参数 | C50: 事件点id#...|事件点id#...|...|难度
A52: 18 | B52: 在xx难度中，以一定顺序完成事件点
B53: 参数 | C53: 事件点id#...|事件点id#...|...|难度
A55: 19 | B55: 在xx难度中，以一定顺序击杀怪物
B56: 参数 | C56: 怪物组#...|怪物组#...|难度
A58: 20 | B58: 在xx难度中，不触发某些事件点的情况下，完成某事件点x次。
B59: 参数 | C59: （不触发）事件点id#事件点id#...|（要完成）事件点id#事件点id#...|难度#数量
A61: 21 | B61: 累计击杀怪物数
B62: 参数 | C62: 难度#怪物组id#怪物组id#...|次数

Sheet Sheet1
B3: 9 | C3: 301 | E3: 简单难度通关1次 | Q3: 301 | R3: 43009 | S3: =VLOOKUP(R3,$B$19:$D$71,2,FALSE) -> 12013 | T3: =VLOOKUP(S3,$G$19:$H$22,2,FALSE) -> 碎片 | U3: =VLOOKUP(R3,$B$19:$D$69,3,FALSE) -> 10 | V3: =VLOOKUP(R3,$B$19:$E$56,4,FALSE) -> 43010
B4: 10 | C4: 301 | E4: 在5分钟内通关简单难度 | Q4: 301 | R4: 43001 | S4: =VLOOKUP(R4,$B$19:$D$71,2,FALSE) -> 14 | T4: =VLOOKUP(S4,$G$19:$H$22,2,FALSE) -> 钱 | U4: =VLOOKUP(R4,$B$19:$D$69,3,FALSE) -> 500000 | V4: =VLOOKUP(R4,$B$19:$E$56,4,FALSE) -> 43001
B5: 11 | C5: 301 | E5: 不死亡通关简单难度 | Q5: 301 | R5: 43001 | S5: 14 | T5: 钱 | U5: 500000 | V5: 43001
B6: 12 | C6: 没用到 | Q6: 301 | R6: 43001 | S6: 14 | T6: 钱 | U6: 500000 | V6: 43001
B7: 13 | C7: 301 | E7: 不上阵秘法的情况下通关简单难度 | Q7: 301 | R7: 43014 | S7: 12013 | T7: 碎片 | U7: 5 | V7: 43009
B8: 14 | C8: 301 | E8: 不上阵武卫击败简单难度魑魅 | Q8: 301 | R8: 43014 | S8: 12013 | T8: 碎片 | U8: 5 | V8: 43009
B9: 15 | C9: 301 | E9: 在30秒内击败简单难度魍魉 | Q9: 301 | R9: 43013 | S9: 12013 | T9: 碎片 | U9: 15 | V9: 43011
B10: 16 | C10: 301 | E10: 击败简单难度的兄弟时，存活5位妖灵师 | Q10: 301 | R10: 43013 | S10: 12013 | T10: 碎片 | U10: 15 | V10: 43011
B11: 17 | C11: 301 | E11: 在简单难度中，选择帮助哥哥、弟弟和都帮各一次 | Q11: 301 | R11: 43001 | S11: 14 | T11: 钱 | U11: 500000 | V11: 43001
B12: 18 | C12: 304 | E12: 破除简单难度五灵阵法时，最后击败金灵妖兽 | K12: 随便打，怎么打都能完成 | Q12: 301 | R12: 43002 | S12: 14 | T12: 钱 | U12: 600000 | V12: 43002
B13: 19 | C13: 没用到 | Q13: 301 | R13: 43003 | S13: 14 | T13: 钱 | U13: 700000 | V13: 43003
B14: 20 | C14: 303 | E14: 在简单难度中，不触发恶气，完成村民的委托 | K14: 没碰到恶气，没完成 | Q14: 301 | R14: 43004 | S14: 14 | T14: 钱 | U14: 800000 | V14: 43004
B15: 21 | C15: 301 | E15: 击杀杂兵10个 | G15: 击杀杂兵20个 | Q15: 301 | R15: 43005 | S15: 16 | T15: 钻 | U15: 100 | V15: 43005
Q16: 301 | R16: 43006 | S16: 16 | T16: 钻 | U16: 100 | V16: 43006
Q17: 301 | R17: 43007 | S17: 16 | T17: 钻 | U17: 200 | V17: 43007
K18: 钱 | L18: 钻 | M18: 碎片 | N18: 币 | Q18: 301 | R18: 43008 | S18: 16 | T18: 钻 | U18: 200 | V18: 43008
B19: 43001 | C19: 14 | D19: 500000 | E19: 43001 | F19: =C19&"#"&D19 -> 14#500000 | G19: 14 | H19: 钱 | J19: 本1 | K19: =SUMIF($T$3:$U$28,K$18,$U$3:$U$28) -> 4100000 | L19: =SUMIF($T$3:$U$28,L$18,$U$3:$U$28) -> 600 | M19: 50 | N19: 1250 | Q19: 301 | R19: 43015 | S19: 25 | T19: 币 | U19: 100 | V19: 43013
B20: 43002 | C20: 14 | D20: 600000 | E20: 43002 | F20: =C20&"#"&D20 -> 14#600000 | G20: 16 | H20: 钻 | J20: 本2 | K20: =SUMIF($T$29:$U$50,K$18,$U$29:$U$50) -> 4100000 | L20: =SUMIF($T$29:$U$50,L$18,$U$29:$U$50) -> 600 | M20: 50 | N20: 1200 | Q20: 301 | R20: 43015 | S20: 25 | T20: 币 | U20: 100 | V20: 43013
B21: 43003 | C21: 14 | D21: 700000 | E21: 43003 | F21: 14#700000 | G21: 12013 | H21: 碎片 | J21: 本3 | K21: =SUMIF($T$51:$U$77,K$18,$U$51:$U$77) -> 5800000 | L21: =SUMIF($T$51:$U$77,L$18,$U$51:$U$77) -> 600 | M21: 100 | N21: 1950 | Q21: 301 | R21: 43015 | S21: 25 | T21: 币 | U21: 100 | V21: 43013
B22: 43004 | C22: 14 | D22: 800000 | E22: 43004 | F22: 14#800000 | G22: 25 | H22: 币 | J22: 本4 | K22: =SUMIF($T$78:$U$102,K$18,$U$78:$U$102) -> 6000000 | L22: =SUMIF($T$78:$U$102,L$18,$U$78:$U$102) -> 600 | M22: 100 | N22: 2000 | Q22: 301 | R22: 43015 | S22: 25 | T22: 币 | U22: 100 | V22: 43013
B23: 43005 | C23: 16 | D23: 100 | E23: 43005 | F23: 16#100 | J23: 本5 | K23: =SUMIF($T$103:$U$116,K$18,$U$103:$U$116) -> 6000000 | L23: =SUMIF($T$103:$U$116,L$18,$U$103:$U$116) -> 600 | M23: 100 | N23: 2000 | Q23: 301 | R23: 43016 | S23: 25 | T23: 币 | U23: 150 | V23: 43015
B24: 43006 | C24: 16 | D24: 100 | E24: 43006 | F24: 16#100 | Q24: 301 | R24: 43016 | S24: 25 | T24: 币 | U24: 150 | V24: 43015
B25: 43007 | C25: 16 | D25: 200 | E25: 43007 | F25: 16#200 | Q25: 301 | R25: 43016 | S25: 25 | T25: 币 | U25: 150 | V25: 43015
B26: 43008 | C26: 16 | D26: 200 | E26: 43008 | F26: 16#200 | Q26: 301 | R26: 43016 | S26: 25 | T26: 币 | U26: 150 | V26: 43015
B27: 43014 | C27: 12013 | D27: 5 | E27: 43009 | F27: 12013#5 | Q27: 301 | R27: 43016 | S27: 25 | T27: 币 | U27: 150 | V27: 43015
B28: 43009 | C28: 12013 | D28: 10 | E28: 43010 | F28: 12013#10 | Q28: 301 | R28: 43015 | S28: 25 | T28: 币 | U28: 100 | V28: 43013
B29: 43013 | C29: 12013 | D29: 15 | E29: 43011 | F29: 12013#15 | Q29: 302 | R29: 43009 | S29: 12013 | T29: 碎片 | U29: 10 | V29: 43010
B30: 43010 | C30: 12013 | D30: 20 | E30: 43012 | F30: 12013#20 | Q30: 302 | R30: 43001 | S30: 14 | T30: 钱 | U30: 500000 | V30: 43001
B31: 43015 | C31: 25 | D31: 100 | E31: 43013 | F31: 25#100 | Q31: 302 | R31: 43001 | S31: 14 | T31: 钱 | U31: 500000 | V31: 43001
B32: 43011 | C32: 25 | D32: 125 | E32: 43014 | F32: 25#125 | Q32: 302 | R32: 43001 | S32: 14 | T32: 钱 | U32: 500000 | V32: 43001
B33: 43016 | C33: 25 | D33: 150 | E33: 43015 | F33: 25#150 | Q33: 302 | R33: 43010 | S33: 12013 | T33: 碎片 | U33: 20 | V33: 43012
B34: 43012 | C34: 25 | D34: 175 | E34: 43016 | F34: 25#175 | Q34: 302 | R34: 43010 | S34: 12013 | T34: 碎片 | U34: 20 | V34: 43012
B35: 44019 | C35: 14 | D35: 500000 | E35: 44001 | F35: 14#500000 | Q35: 302 | R35: 43001 | S35: 14 | T35: 钱 | U35: 500000 | V35: 43001
B36: 44001 | C36: 14 | D36: 800000 | E36: 44002 | F36: 14#800000 | Q36: 302 | R36: 43002 | S36: 14 | T36: 钱 | U36: 600000 | V36: 43002
B37: 44002 | C37: 14 | D37: 900000 | E37: 44003 | F37: 14#900000 | Q37: 302 | R37: 43003 | S37: 14 | T37: 钱 | U37: 700000 | V37: 43003
B38: 44003 | C38: 14 | D38: 1000000 | E38: 44004 | F38: 14#1000000 | Q38: 302 | R38: 43004 | S38: 14 | T38: 钱 | U38: 800000 | V38: 43004
B39: 44004 | C39: 14 | D39: 1100000 | E39: 44005 | F39: 14#1100000 | Q39: 302 | R39: 43005 | S39: 16 | T39: 钻 | U39: 100 | V39: 43005
B40: 44018 | C40: 14 | D40: 1500000 | E40: 44006 | F40: 14#1500000 | Q40: 302 | R40: 43006 | S40: 16 | T40: 钻 | U40: 100 | V40: 43006
B41: 44005 | C41: 16 | D41: 100 | E41: 44007 | F41: 16#100 | Q41: 302 | R41: 43007 | S41: 16 | T41: 钻 | U41: 200 | V41: 43007
B42: 44006 | C42: 16 | D42: 100 | E42: 44008 | F42: 16#100 | Q42: 302 | R42: 43008 | S42: 16 | T42: 钻 | U42: 200 | V42: 43008
B43: 44007 | C43: 16 | D43: 200 | E43: 44009 | F43: 16#200 | Q43: 302 | R43: 43011 | S43: 25 | T43: 币 | U43: 125 | V43: 43014
B44: 44008 | C44: 16 | D44: 200 | E44: 44010 | F44: 16#200 | Q44: 302 | R44: 43011 | S44: 25 | T44: 币 | U44: 125 | V44: 43014
B45: 44020 | C45: 12013 | D45: 10 | E45: 44011 | F45: 12013#10 | Q45: 302 | R45: 43011 | S45: 25 | T45: 币 | U45: 125 | V45: 43014
B46: 44022 | C46: 12013 | D46: 15 | E46: 44012 | F46: 12013#15 | Q46: 302 | R46: 43011 | S46: 25 | T46: 币 | U46: 125 | V46: 43014
B47: 44021 | C47: 12013 | D47: 20 | E47: 44013 | F47: 12013#20 | Q47: 302 | R47: 43012 | S47: 25 | T47: 币 | U47: 175 | V47: 43016
B48: 44009 | C48: 12013 | D48: 25 | E48: 44014 | F48: 12013#25 | Q48: 302 | R48: 43012 | S48: 25 | T48: 币 | U48: 175 | V48: 43016
B49: 44010 | C49: 12013 | D49: 40 | E49: 44015 | F49: 12013#40 | Q49: 302 | R49: 43012 | S49: 25 | T49: 币 | U49: 175 | V49: 43016
B50: 44013 | C50: 12013 | D50: 50 | E50: 44016 | F50: 12013#50 | Q50: 302 | R50: 43012 | S50: 25 | T50: 币 | U50: 175 | V50: 43016
B51: 44017 | C51: 25 | D51: 100 | E51: 44017 | F51: 25#100 | Q51: 303 | R51: 44020 | S51: 12013 | T51: 碎片 | U51: 10 | V51: 44011
B52: 44014 | C52: 25 | D52: 175 | E52: 44018 | F52: 25#175 | Q52: 303 | R52: 44021 | S52: 12013 | T52: 碎片 | U52: 20 | V52: 44013
B53: 44016 | C53: 25 | D53: 200 | E53: 44019 | F53: 25#200 | Q53: 303 | R53: 44019 | S53: 14 | T53: 钱 | U53: 500000 | V53: 44001
B54: 44015 | C54: 25 | D54: 250 | E54: 44020 | F54: 25#250 | Q54: 303 | R54: 44019 | S54: 14 | T54: 钱 | U54: 500000 | V54: 44001
B55: 44011 | C55: 25 | D55: 375 | E55: 44021 | F55: 25#375 | Q55: 303 | R55: 44019 | S55: 14 | T55: 钱 | U55: 500000 | V55: 44001
B56: 44012 | C56: 25 | D56: 500 | E56: 44022 | F56: 25#500 | Q56: 303 | R56: 44019 | S56: 14 | T56: 钱 | U56: 500000 | V56: 44001
Q57: 303 | R57: 44022 | S57: 12013 | T57: 碎片 | U57: 15 | V57: 44012
Q58: 303 | R58: 44022 | S58: 12013 | T58: 碎片 | U58: 15 | V58: 44012
Q59: 303 | R59: 44021 | S59: 12013 | T59: 碎片 | U59: 20 | V59: 44013
Q60: 303 | R60: 44021 | S60: 12013 | T60: 碎片 | U60: 20 | V60: 44013
Q61: 303 | R61: 44001 | S61: 14 | T61: 钱 | U61: 800000 | V61: 44002
Q62: 303 | R62: 44002 | S62: 14 | T62: 钱 | U62: 900000 | V62: 44003
Q63: 303 | R63: 44003 | S63: 14 | T63: 钱 | U63: 1000000 | V63: 44004
Q64: 303 | R64: 44004 | S64: 14 | T64: 钱 | U64: 1100000 | V64: 44005
Q65: 303 | R65: 44005 | S65: 16 | T65: 钻 | U65: 100 | V65: 44007
Q66: 303 | R66: 44006 | S66: 16 | T66: 钻 | U66: 100 | V66: 44008
Q67: 303 | R67: 44007 | S67: 16 | T67: 钻 | U67: 200 | V67: 44009
Q68: 303 | R68: 44008 | S68: =VLOOKUP(R68,$B$19:$D$71,2,FALSE) -> 16 | T68: =VLOOKUP(S68,$G$19:$H$22,2,FALSE) -> 钻 | U68: =VLOOKUP(R68,$B$19:$D$69,3,FALSE) -> 200 | V68: =VLOOKUP(R68,$B$19:$E$56,4,FALSE) -> 44010
Q69: 303 | R69: 44014 | S69: 25 | T69: 币 | U69: 175 | V69: 44018
Q70: 303 | R70: 44014 | S70: 25 | T70: 币 | U70: 175 | V70: 44018
Q71: 303 | R71: 44014 | S71: 25 | T71: 币 | U71: 175 | V71: 44018
Q72: 303 | R72: 44014 | S72: 25 | T72: 币 | U72: 175 | V72: 44018
Q73: 303 | R73: 44015 | S73: 25 | T73: 币 | U73: 250 | V73: 44020
Q74: 303 | R74: 44015 | S74: 25 | T74: 币 | U74: 250 | V74: 44020
Q75: 303 | R75: 44015 | S75: 25 | T75: 币 | U75: 250 | V75: 44020
Q76: 303 | R76: 44015 | S76: 25 | T76: 币 | U76: 250 | V76: 44020
Q77: 303 | R77: 44015 | S77: 25 | T77: 币 | U77: 250 | V77: 44020
Q78: 304 | R78: 44020 | S78: 12013 | T78: 碎片 | U78: 10 | V78: 44011
Q79: 304 | R79: 44020 | S79: 12013 | T79: 碎片 | U79: 10 | V79: 44011
Q80: 304 | R80: 44021 | S80: 12013 | T80: 碎片 | U80: 20 | V80: 44013
Q81: 304 | R81: 44021 | S81: 12013 | T81: 碎片 | U81: 20 | V81: 44013
Q82: 304 | R82: 44010 | S82: 12013 | T82: 碎片 | U82: 40 | V82: 44015
Q83: 304 | R83: 44018 | S83: 14 | T83: 钱 | U83: 1500000 | V83: 44006
Q84: 304 | R84: 44018 | S84: 14 | T84: 钱 | U84: 1500000 | V84: 44006
Q85: 304 | R85: 44018 | S85: 14 | T85: 钱 | U85: 1500000 | V85: 44006
Q86: 304 | R86: 44018 | S86: 14 | T86: 钱 | U86: 1500000 | V86: 44006
Q87: 304 | R87: 44005 | S87: 16 | T87: 钻 | U87: 100 | V87: 44007
Q88: 304 | R88: 44006 | S88: 16 | T88: 钻 | U88: 100 | V88: 44008
Q89: 304 | R89: 44007 | S89: 16 | T89: 钻 | U89: 200 | V89: 44009
Q90: 304 | R90: 44008 | S90: 16 | T90: 钻 | U90: 200 | V90: 44010
Q91: 304 | R91: 44017 | S91: 25 | T91: 币 | U91: 100 | V91: 44017
Q92: 304 | R92: 44017 | S92: 25 | T92: 币 | U92: 100 | V92: 44017
Q93: 304 | R93: 44017 | S93: 25 | T93: 币 | U93: 100 | V93: 44017
Q94: 304 | R94: 44017 | S94: 25 | T94: 币 | U94: 100 | V94: 44017
Q95: 304 | R95: 44016 | S95: 25 | T95: 币 | U95: 200 | V95: 44019
Q96: 304 | R96: 44016 | S96: 25 | T96: 币 | U96: 200 | V96: 44019
Q97: 304 | R97: 44016 | S97: 25 | T97: 币 | U97: 200 | V97: 44019
Q98: 304 | R98: 44016 | S98: 25 | T98: 币 | U98: 200 | V98: 44019
Q99: 304 | R99: 44016 | S99: 25 | T99: 币 | U99: 200 | V99: 44019
Q100: 304 | R100: 44016 | S100: 25 | T100: 币 | U100: 200 | V100: 44019
Q101: 304 | R101: 44016 | S101: 25 | T101: 币 | U101: 200 | V101: 44019
Q102: 304 | R102: 44016 | S102: 25 | T102: 币 | U102: 200 | V102: 44019
Q103: 305 | R103: 44013 | S103: 12013 | T103: 碎片 | U103: 50 | V103: 44016
Q104: 305 | R104: 44013 | S104: 12013 | T104: 碎片 | U104: 50 | V104: 44016
Q105: 305 | R105: 44018 | S105: 14 | T105: 钱 | U105: 1500000 | V105: 44006
Q106: 305 | R106: 44018 | S106: 14 | T106: 钱 | U106: 1500000 | V106: 44006
Q107: 305 | R107: 44018 | S107: 14 | T107: 钱 | U107: 1500000 | V107: 44006
Q108: 305 | R108: 44018 | S108: 14 | T108: 钱 | U108: 1500000 | V108: 44006
Q109: 305 | R109: 44005 | S109: 16 | T109: 钻 | U109: 100 | V109: 44007
Q110: 305 | R110: 44006 | S110: 16 | T110: 钻 | U110: 100 | V110: 44008
Q111: 305 | R111: 44007 | S111: 16 | T111: 钻 | U111: 200 | V111: 44009
Q112: 305 | R112: 44008 | S112: 16 | T112: 钻 | U112: 200 | V112: 44010
Q113: 305 | R113: 44012 | S113: 25 | T113: 币 | U113: 500 | V113: 44022
Q114: 305 | R114: 44012 | S114: 25 | T114: 币 | U114: 500 | V114: 44022
Q115: 305 | R115: 44012 | S115: 25 | T115: 币 | U115: 500 | V115: 44022
Q116: 305 | R116: 44012 | S116: 25 | T116: 币 | U116: 500 | V116: 44022
